fUSD/lending_fUSD_20240409
["ID","MTS","AMOUNT","RATE_DAILY","PERIOD"]
[321920585,1712625052313,-164.159296,0.00024657,7]
[321920586,1712625052323,-500.0,0.00024657,2]
[321920587,1712625052332,-164.159296,0.00024657,7]
[321920588,1712625052342,-500.0,0.00024657,2]
[321920589,1712625052351,-164.159296,0.00024657,7]
[321920590,1712625052360,-652.89,0.00024657,2]
[321920591,1712625052369,-500.0,0.00024657,2]
[321920592,1712625052379,-164.159296,0.00024657,7]
[321920593,1712625052388,-164.159296,0.00024657,7]
[321920594,1712625052400,-1594.05,0.00024657,2]
[321920595,1712625052409,-500.0,0.00024657,2]
[321920596,1712625052419,-164.159296,0.00024657,7]
[321920597,1712625052428,-500.0,0.00024657,2]
[321920598,1712625052438,-164.159296,0.00024657,7]
[321920599,1712625052448,-151.0,0.00024657,7]
[321920600,1712625052457,-151.0,0.00024657,7]
[321920601,1712625052467,-638.9390582,0.00024657,2]
[321920602,1712625052476,-1102.78,0.00024657,2]
[321920603,1712625052487,-914.11,0.00024657,2]
[321920604,1712625052497,-151.0,0.00024657,7]
[321920605,1712625052506,-11956.88,0.00024657,2]
[321920606,1712625052516,-500.0,0.00024657,2]
[321920607,1712625052525,-151.0,0.00024657,7]
[321920608,1712625052535,-151.0,0.00024657,7]
[321920609,1712625052544,-500.0,0.00024657,2]
[321920610,1712625052554,-500.0,0.00024657,2]
[321920611,1712625052563,-871.37,0.00024657,2]
[321920612,1712625052572,-515.64472474,0.00024657,2]
[321920613,1712625052582,-151.0,0.00024657,7]
[321920614,1712625052592,-500.0,0.00024657,2]
[321920615,1712625052602,-500.0,0.00024657,2]
[321920616,1712625052612,-107329.29,0.00024657,2]
[321920617,1712625052622,-1719.56,0.00024657,2]
[321920618,1712625052631,-151.0,0.00024657,7]
[321920619,1712625052641,-151.0,0.00024657,7]
[321920620,1712625052657,-531.9046593,0.00024657,2]
[321920621,1712625052666,-184.614658,0.00024657,7]
[321920622,1712625052675,-500.0,0.00024657,2]
[321920623,1712625052685,-500.0,0.00024657,2]
[321920624,1712625052695,-500.0,0.00024657,2]
[321920625,1712625052705,-3606.65,0.00024657,2]
[321920626,1712625052714,-594.18,0.00024657,2]
[321920627,1712625052723,-500.0,0.00024657,2]
[321920628,1712625052733,-500.0,0.00024657,2]
[321920629,1712625052742,-946.38,0.00024657,2]
[321920630,1712625052752,-500.0,0.00024657,2]
[321920631,1712625052761,-966.09,0.00024657,2]
[321920632,1712625052770,-500.0,0.00024657,2]
[321920633,1712625052779,-515.98,0.00024657,2]
[321920634,1712625052788,-528.45552179,0.00024657,2]
[321920635,1712625052799,-5191.97,0.00024657,2]
[321920636,1712625052808,-592.81,0.00024657,2]
[321920637,1712625052817,-1557.08,0.00024657,2]
[321920638,1712625052826,-500.0,0.00024657,2]
[321920639,1712625052838,-500.0,0.00024657,2]
[321920640,1712625052848,-852.83,0.00024657,2]
[321920641,1712625052857,-2178.17,0.00024657,2]
[321920642,1712625052866,-500.0,0.00024657,2]
[321920643,1712625052877,-500.0,0.00024657,2]
[321920644,1712625052886,-574.51,0.00024657,2]
[321920645,1712625052902,-1384.85,0.00024657,2]
[321920646,1712625052911,-500.0,0.00024657,2]
[321920647,1712625052921,-6258.97,0.00024657,2]
[321920648,1712625052932,-500.0,0.00024657,2]
[321920649,1712625052941,-500.0,0.00024657,2]
[321920650,1712625052951,-500.0,0.00024657,2]
[321920651,1712625052960,-500.0,0.00024657,2]
[321920652,1712625052970,-2758.91,0.00024657,2]
[321920653,1712625052979,-2699.59,0.00024657,2]
[321920654,1712625052988,-516.67,0.00024657,2]
[321920655,1712625052998,-500.0,0.00024657,2]
[321920656,1712625053008,-1170.09,0.00024657,2]
[321920657,1712625053017,-2566.48,0.00024657,2]
[321920658,1712625053026,-12080.8,0.00024657,2]
[321920659,1712625053036,-171.13422537,0.00024657,2]
[321920660,1712625053047,-500.0,0.00024657,2]
[321920661,1712625053057,-1997.89,0.00024657,2]
[321920662,1712625053068,-500.0,0.00024657,2]
[321920663,1712625053077,-500.0,0.00024657,2]
[321920664,1712625053088,-500.0,0.00024657,2]
[321920665,1712625053097,-510.8737949,0.00024657,2]
[321920666,1712625053107,-151.0,0.00024657,7]
[321920667,1712625053118,-500.0,0.00024657,2]
[321920668,1712625053127,-249.438702,0.00024657,7]
[321920669,1712625053136,-500.0,0.00024657,2]
[321920670,1712625053152,-500.0,0.00024657,2]
[321920671,1712625053161,-500.0,0.00024657,2]
[321920672,1712625053170,-1432.76,0.00024657,2]
[321920673,1712625053179,-4998.66,0.00024657,2]
[321920674,1712625053189,-1081.23,0.00024657,2]
[321920675,1712625053199,-2104.5,0.00024657,2]
[321920676,1712625053209,-500.0,0.00024657,2]
[321920677,1712625053219,-2654.79,0.00024657,2]
[321920678,1712625053229,-1639.02,0.00024657,2]
[321920679,1712625053239,-500.0,0.00024657,2]
[321920680,1712625053249,-3270.48,0.00024657,2]
[321920681,1712625053258,-500.0,0.00024657,2]
[321920682,1712625053268,-346.43678847,0.00024657,2]
[321920683,1712625053278,-5687.06,0.00024657,2]
[321920684,1712625053288,-500.0,0.00024657,2]
[321920685,1712625053297,-500.0,0.00024657,2]
[321920686,1712625053308,-2084.58,0.00024657,2]
[321920687,1712625053317,-500.0,0.00024657,2]
[321920688,1712625053326,-500.0,0.00024657,2]
[321920689,1712625053336,-500.0,0.00024657,2]
[321920690,1712625053345,-500.0,0.00024657,2]
[321920691,1712625053355,-3826.23,0.00024657,2]
[321920692,1712625053364,-500.0,0.00024657,2]
[321920693,1712625053374,-19520.18,0.00024657,2]
[321920694,1712625053383,-500.0,0.00024657,2]
[321920695,1712625053393,-500.0,0.00024657,2]
[321920696,1712625053410,-2313.57151695,0.00024657,2]
[321920697,1712625054122,-5764.07848305,0.00024657,2]
[321920698,1712625054132,-1665.61,0.00024657,2]
[321920699,1712625054143,-500.0,0.00024657,2]
[321920700,1712625054158,-1005.94300113,0.00024657,2]
[321920701,1712625054170,-463.40699887,0.00024657,2]
[321920702,1712625054180,-500.0,0.00024657,2]
[321920703,1712625054190,-103.61883642,0.00024657,2]
[321920704,1712625054201,-710.96286551,0.00024657,2]
[321920705,1712625054319,-362.19769809,0.00020999,2]
[321920706,1712625054328,-162.18,0.00024359,2]
[321920707,1712625054338,-2422.34026006,0.00024596,2]
[321920708,1712625054347,-535.53829807,0.00024657,2]
[321920709,1712625054356,-1065.45765383,0.00024657,2]
[321920710,1712625054386,-295.85496102,0.00024657,2]
[321920711,1712625054581,13754.35717286,0.00015635,2]
[321920712,1712625054847,-155.0,0.00020999,2]
[321920713,1712625054857,-150.0,0.00023518,2]
[321920714,1712625054867,-2422.34026006,0.00024514,2]
[321920715,1712625054877,-828.20973994,0.00024542,2]
[321920716,1712625054889,-1594.13052012,0.00024542,2]
[321920717,1712625054905,-215.99900251,0.0002457,2]
[321920718,1712625055415,-305.1279433,0.00020999,2]
[321920719,1712625055425,-500.0,0.00020999,2]
[321920720,1712625055434,-278.72,0.00020999,2]
[321920721,1712625055444,-6208.72680129,0.00020999,2]
[321920722,1712625055452,-2206.34125755,0.0002457,2]
[321920723,1712625055462,-2422.34026006,0.00024583,2]
[321920724,1712625055471,-990.44625776,0.00024586,2]
[321920725,1712625055482,-668.23232316,0.00024586,2]
[321920726,1712625055500,-763.66167914,0.00024586,2]
[321920727,1712625055509,-12338.53738515,0.00024657,2]
[321920728,1712625055518,-151.0,0.00024657,7]
[321920729,1712625055527,-500.0,0.00024657,2]
[321920730,1712625055536,-151.0,0.00024657,7]
[321920731,1712625055545,-500.0,0.00024657,2]
[321920732,1712625055555,-3334.03,0.00024657,2]
[321920733,1712625055564,-500.0,0.00024657,2]
[321920734,1712625055573,-567.69,0.00024657,2]
[321920735,1712625055582,-500.0,0.00024657,2]
[321920736,1712625055591,-159.015716,0.00024657,7]
[321920737,1712625055600,-159.015716,0.00024657,7]
[321920738,1712625055610,-159.015716,0.00024657,7]
[321920739,1712625055619,-1465.15,0.00024657,2]
[321920740,1712625055628,-159.015716,0.00024657,7]
[321920741,1712625055638,-500.0,0.00024657,2]
[321920742,1712625055651,-1765.06,0.00024657,2]
[321920743,1712625055660,-159.015716,0.00024657,7]
[321920744,1712625055669,-1028.49,0.00024657,2]
[321920745,1712625055679,-159.015716,0.00024657,7]
[321920746,1712625055689,-159.015716,0.00024657,7]
[321920747,1712625055698,-2439.67,0.00024657,2]
[321920748,1712625055707,-500.0,0.00024657,2]
[321920749,1712625055717,-159.015716,0.00024657,7]
[321920750,1712625055726,-500.0,0.00024657,2]
[321920751,1712625055735,-159.015716,0.00024657,7]
[321920752,1712625055744,-159.015716,0.00024657,7]
[321920753,1712625055753,-159.015716,0.00024657,7]
[321920754,1712625055762,-3518.56,0.00024657,2]
[321920755,1712625055771,-159.015716,0.00024657,7]
[321920756,1712625055781,-159.015716,0.00024657,7]
[321920757,1712625055790,-159.015716,0.00024657,7]
[321920758,1712625055800,-500.0,0.00024657,2]
[321920759,1712625055809,-500.0,0.00024657,2]
[321920760,1712625055819,-912.38,0.00024657,2]
[321920761,1712625055828,-4234.8,0.00024657,2]
[321920762,1712625055843,-500.0,0.00024657,2]
[321920763,1712625055856,-25538.76,0.00024657,2]
[321920764,1712625056217,-1660.82,0.00024657,2]
[321920765,1712625056234,-500.0,0.00024657,2]
[321920766,1712625056243,-1263.09,0.00024657,2]
[321920767,1712625056253,-500.0,0.00024657,2]
[321920768,1712625056263,-1594.14,0.00024657,2]
[321920769,1712625056272,-500.0,0.00024657,2]
[321920770,1712625056282,-2242.67,0.00024657,2]
[321920771,1712625056291,-3081.2,0.00024657,2]
[321920772,1712625056300,-500.0,0.00024657,2]
[321920773,1712625056310,-500.0,0.00024657,2]
[321920774,1712625056319,-3281.25,0.00024657,2]
[321920775,1712625056330,-1098.87,0.00024657,2]
[321920776,1712625056339,-500.0,0.00024657,2]
[321920777,1712625056349,-585.19,0.00024657,2]
[321920778,1712625056358,-550.08087862,0.00024657,2]
[321920779,1712625056368,-5653.64,0.00024657,2]
[321920780,1712625056377,-500.0,0.00024657,2]
[321920781,1712625056387,-2309.15,0.00024657,2]
[321920782,1712625056400,-552.93,0.00024657,2]
[321920783,1712625056409,-881.55,0.00024657,2]
[321920784,1712625056419,-500.0,0.00024657,2]
[321920785,1712625056428,-4598.52,0.00024657,2]
[321920786,1712625056437,-2860.68,0.00024657,2]
[321920787,1712625056449,-500.0,0.00024657,2]
[321920788,1712625056459,-500.0,0.00024657,2]
[321920789,1712625056468,-500.0,0.00024657,2]
[321920790,1712625056478,-151.0,0.00024657,7]
[321920791,1712625056488,-151.0,0.00024657,7]
[321920792,1712625056497,-1525.93,0.00024657,2]
[321920793,1712625056506,-500.0,0.00024657,2]
[321920794,1712625056516,-500.0,0.00024657,2]
[321920795,1712625056524,-2266.59,0.00024657,2]
[321920796,1712625056534,-151.0,0.00024657,7]
[321920797,1712625056543,-151.0,0.00024657,7]
[321920798,1712625056553,-500.0,0.00024657,2]
[321920799,1712625056563,-500.0,0.00024657,2]
[321920800,1712625056572,-500.0,0.00024657,2]
[321920801,1712625056581,-500.0,0.00024657,2]
[321920802,1712625056590,-4357.11,0.00024657,2]
[321920803,1712625056599,-500.0,0.00024657,2]
[321920804,1712625056609,-3910.06,0.00024657,2]
[321920805,1712625056618,-2786.66,0.00024657,2]
[321920806,1712625056628,-23359.84,0.00024657,2]
[321920807,1712625056637,-1443.44,0.00024657,2]
[321920808,1712625056653,-149.17249319,0.00024657,7]
[321920809,1712625056668,-1.82750681,0.00024657,7]
[321920810,1712625056677,-724.59,0.00024657,2]
[321920811,1712625056686,-671.4,0.00024657,2]
[321920812,1712625056696,-151.0,0.00024657,7]
[321920813,1712625056706,-500.0,0.00024657,2]
[321920814,1712625056716,-2949.63,0.00024657,2]
[321920815,1712625056726,-2538.72,0.00024657,2]
[321920816,1712625056735,-500.0,0.00024657,2]
[321920817,1712625056745,-460.77982966,0.00024657,2]
[321920818,1712625056759,-39.22017034,0.00024657,2]
[321920819,1712625056768,-629.66,0.00024657,2]
[321920820,1712625056778,-500.0,0.00024657,2]
[321920821,1712625056787,-1754.86977966,0.00024657,2]
[321920822,1712625056823,-1924.25022034,0.00024657,2]
[321920823,1712625056834,-500.0,0.00024657,2]
[321920824,1712625056846,-2660.42258219,0.00024657,2]
[321920825,1712625056863,-2574.52741781,0.00024657,2]
[321920826,1712625056873,-500.0,0.00024657,2]
[321920827,1712625056882,-500.0,0.00024657,2]
[321920828,1712625056892,-517.64,0.00024657,2]
[321920829,1712625056905,-3626.68,0.00024657,2]
[321920830,1712625056916,-2948.22942219,0.00024657,2]
[321920831,1712625056927,-1980.62057781,0.00024657,2]
[321920832,1712625056936,-509.58785621,0.00024657,2]
[321920833,1712625056945,-1067.01,0.00024657,2]
[321920834,1712625056956,-5998.88,0.00024657,2]
[321920835,1712625056965,-72.54114471,0.00024657,2]
[321920836,1712625057115,365.88065748,0.00015635,2]
[321920837,1712625063039,150.5,0.0002469,15]
[321920838,1712625063361,150.5,0.0002468,15]
[321920839,1712625063478,181.0,0.0002469,15]
[321920840,1712625063868,150.5,0.0002467,15]
[321920841,1712625063931,645.0,0.0002469,15]
[321920842,1712625064020,181.0,0.0002468,15]
[321920843,1712625064712,181.0,0.0002467,15]
[321920844,1712625064740,645.0,0.0002468,15]
[321920845,1712625065218,645.0,0.0002467,15]
[321920846,1712625067917,322.02239215,0.00015635,2]
[321920847,1712625098718,150.0,0.00024656,10]
[321920848,1712625183220,384.0,0.00024921,15]
[321920849,1712625183296,150.5,0.00024921,15]
[321920850,1712625183689,384.0,0.00024911,15]
[321920851,1712625183761,150.5,0.00024911,15]
[321920852,1712625184174,384.0,0.00024901,15]
[321920853,1712625184240,219.0,0.00024901,15]
[321920854,1712625184944,452.0,0.00024921,15]
[321920855,1712625185497,452.0,0.00024911,15]
[321920856,1712625185988,452.0,0.00024901,15]
[321920857,1712625215126,207.88,0.00024329,15]
[321920858,1712625271257,202.96455072,0.00024657,10]
[321920859,1712625304939,316.0,0.0002492,15]
[321920860,1712625305398,316.0,0.0002491,15]
[321920861,1712625305904,316.0,0.000249,15]
[321920869,1712625424643,269.0,0.00024921,15]
[321920870,1712625424952,222.0,0.00024921,15]
[321920871,1712625425135,269.0,0.00024911,15]
[321920872,1712625425592,269.0,0.00024901,15]
[321920873,1712625426222,222.0,0.00024911,15]
[321920874,1712625426687,222.0,0.00024901,15]
[321920875,1712625546416,155.0,0.0002492,15]
[321920876,1712625546888,155.0,0.0002491,15]
[321920877,1712625547346,155.0,0.000249,15]
[321920880,1712625664447,189.0,0.00024662,15]
[321920881,1712625664927,150.5,0.00024662,15]
[321920882,1712625664953,189.0,0.00024652,15]
[321920883,1712625665437,150.5,0.00024652,15]
[321920884,1712625665483,189.0,0.00024642,15]
[321920885,1712625665869,150.5,0.00024642,15]
[321920886,1712625784790,150.5,0.00024647,15]
[321920887,1712625786150,150.5,0.00024637,15]
[321920888,1712625786424,150.5,0.00024627,15]
[321920889,1712625827302,3417.69328,0.00025,10]
[321920890,1712625904559,150.5,0.00024647,15]
[321920891,1712625905082,150.5,0.00024637,15]
[321920892,1712625905583,150.5,0.00024627,15]
[321920898,1712626030231,150.0,0.00024656,10]
[321920911,1712626109365,194.88,0.00024329,15]
[321920930,1712626232355,-150.0,0.0001819,2]
[321920931,1712626232365,-100.0,0.0001819,2]
[321920932,1712626232390,-3058.69872708,0.0001819,2]
[321920933,1712626232399,-120.09928148,0.00018191,2]
[321920934,1712626232518,-398.04090469,0.00018191,2]
[321920935,1712626232527,-518.14018617,0.00018191,2]
[321920936,1712626232536,-500.66850914,0.00018191,2]
[321920937,1712626232650,-17.47167703,0.00018191,2]
[321920938,1712626232659,-438.12800463,0.00018191,2]
[321920939,1712626232670,-80.01218154,0.00018191,2]
[321920940,1712626232679,-207.91063621,0.00018191,2]
[321920941,1712626232690,-310.22954996,0.00018191,2]
[321920942,1712626232699,-123.43577988,0.00018194,2]
[321920943,1712626232712,-49.59422012,0.00018194,2]
[321920944,1712626232722,-157.92490406,0.000196,2]
[321920945,1712626232732,-223.13221903,0.000197,2]
[321920946,1712626232741,-351.8661,0.00019846,2]
[321920947,1712626232751,-326.56857755,0.0002,2]
[321920948,1712626232760,-190.33482374,0.0002,2]
[321920951,1712626232777,-3544.35,0.0002,2]
[321920954,1712626232801,-2474.04197755,0.0002,2]
[321920956,1712626232810,-27990.74235701,0.00020732,2]
[321920958,1712626232821,-3863.61202719,0.00020732,2]
[321921033,1712626239201,-4798.13231982,0.00020732,2]
[321921034,1712626239214,-4888.63528042,0.00020732,2]
[321921035,1712626239225,-21813.34054927,0.00020732,2]
[321921036,1712626239236,-3305.11020521,0.00020732,2]
[321921037,1712626239247,-3847.35178955,0.00020732,2]
[321921038,1712626239297,-24220.62192373,0.00020732,2]
[321921039,1712626239308,-4259.0942187,0.00020732,2]
[321921040,1712626239338,-5478.49011135,0.00020732,2]
[321921041,1712626239348,-1320.02215054,0.00020733,4]
[321921042,1712626239510,-12230.44341229,0.00020733,4]
[321921043,1712626239519,-768.81,0.00020735,2]
[321921044,1712626239528,-6789.12,0.00020735,2]
[321921045,1712626239538,-999.99,0.00020735,2]
[321921046,1712626239547,-378.6618,0.000208,2]
[321921047,1712626239555,-1276.97494882,0.00020998,2]
[321921048,1712626239564,-1706.65529244,0.00020998,2]
[321921049,1712626239574,-364.86720588,0.00020998,2]
[321921050,1712626239584,-150.99,0.00020998,2]
[321921051,1712626239593,-1455.93555043,0.00020999,2]
[321921052,1712626239603,-2208.16129134,0.00021,2]
[321921053,1712626239612,-250.0,0.00021989,2]
[321921054,1712626239622,-875.07,0.00022023,2]
[321921055,1712626239631,-157.92490406,0.00022078,2]
[321921056,1712626239640,-497.82,0.00022098,2]
[321921057,1712626239649,-500.0,0.00022099,2]
[321921058,1712626239658,-1173.58,0.00022109,2]
[321921059,1712626239667,-11323.28748573,0.00022463,2]
[321921060,1712626239679,-7089.48612799,0.00022463,2]
[321921061,1712626239713,-546.53522949,0.00022463,2]
[321921062,1712626239725,-4940.69115679,0.00022463,2]
[321921063,1712626239734,-500.0,0.00022495,2]
[321921064,1712626239744,-1005.31,0.00022505,2]
[321921065,1712626239753,-3247.63,0.00022568,2]
[321921066,1712626239763,-13140.52,0.00022586,2]
[321921067,1712626239772,-250.0,0.00022592,2]
[321921068,1712626239781,-197.53,0.00022637,2]
[321921069,1712626239790,-156.16,0.00022649,2]
[321921070,1712626239799,-1500.0,0.00022695,2]
[321921071,1712626239809,-200.0,0.00022703,2]
[321921072,1712626239820,-341.09,0.00022716,2]
[321921073,1712626239831,-16574.72,0.00022716,2]
[321921074,1712626239840,-923.076,0.00022716,2]
[321921075,1712626239850,-500.0,0.00022736,2]
[321921076,1712626239859,-1648.16,0.0002274,2]
[321921077,1712626239869,-250.0,0.00022755,2]
[321921078,1712626239878,-9805.2047817,0.00022837,2]
[321921080,1712626239888,-3770.93318316,0.00022961,2]
[321921081,1712626239897,-768.81,0.00022999,2]
[321921082,1712626239907,-4310.90021658,0.00023059,2]
[321921083,1712626239917,-442.96237305,0.0002306,2]
[321921084,1712626239928,-4813.804,0.00023061,2]
[321921085,1712626239938,-5742.848,0.00023061,2]
[321921086,1712626239948,-2468.004,0.00023061,2]
[321921087,1712626239958,-16823.9711517,0.00023061,2]
[321921088,1712626239970,-3007.5900657,0.00023061,2]
[321921089,1712626239981,-274.64053938,0.00023061,2]
[321921090,1712626239993,-4769.46932975,0.00023061,2]
[321921096,1712626240537,-406.24944498,0.00023061,2]
[321921098,1712626240602,-12275.07946849,0.00023061,2]
[321921099,1712626240613,-163.04,0.00023116,2]
[321921100,1712626240622,-500.0,0.0002315,2]
[321921101,1712626240632,-157.61,0.00023271,2]
[321921102,1712626240642,-157.61,0.00023281,2]
[321921103,1712626240651,-157.61,0.0002329,2]
[321921104,1712626240660,-157.61,0.000233,2]
[321921105,1712626240669,-157.61,0.0002331,2]
[321921106,1712626240679,-157.61,0.0002332,2]
[321921107,1712626240689,-157.61,0.00023329,2]
[321921108,1712626240699,-157.61,0.00023339,2]
[321921109,1712626240709,-157.61,0.00023349,2]
[321921110,1712626240719,-3770.93318315,0.00023351,2]
[321921111,1712626240729,-157.61,0.00023358,2]
[321921112,1712626240740,-157.61,0.00023368,2]
[321921113,1712626240751,-157.61,0.00023378,2]
[321921114,1712626240761,-157.61,0.00023387,2]
[321921115,1712626240771,-162.18,0.00023537,2]
[321921116,1712626240780,-162.18,0.00023537,2]
[321921117,1712626240789,-162.18,0.00023537,2]
[321921118,1712626240800,-150.0,0.00023598,2]
[321921119,1712626240810,-500.0,0.00023698,2]
[321921120,1712626240820,-3770.93318315,0.00023742,2]
[321921121,1712626240829,-162.18,0.00023778,2]
[321921122,1712626240839,-224.56326927,0.00024,2]
[321921123,1712626240849,-3770.93318315,0.00024132,2]
[321921124,1712626240859,-1141.86395143,0.00024163,2]
[321921125,1712626240869,-1039.83266013,0.00024163,2]
[321921126,1712626240878,-1099.59946665,0.00024164,2]
[321921127,1712626240890,-165.03,0.00024173,2]
[321921128,1712626240899,-162.07,0.00024173,2]
[321921129,1712626240908,-1208.450706,0.00024325,2]
[321921130,1712626240919,-400.0,0.000244,8]
[321921131,1712626240930,-1096.79987713,0.00024402,2]
[321921132,1712626240940,-1033.48064187,0.00024403,2]
[321921133,1712626240950,-1101.9068607,0.00024403,2]
[321921134,1712626240960,-298.12062593,0.00024408,2]
[321921135,1712626240971,-523.10776,0.0002441,2]
[321921136,1712626240979,-200.0,0.00024458,2]
[321921137,1712626240991,-1000.0,0.00024458,2]
[321921138,1712626241001,-500.0,0.00024458,2]
[321921139,1712626241011,-1208.450706,0.00024474,2]
[321921140,1712626241023,-1073.42810086,0.000245,2]
[321921141,1712626241032,-150.0,0.000245,2]
[321921142,1712626241042,-800.0,0.000245,8]
[321921143,1712626241051,-340.07994146,0.00024502,2]
[321921144,1712626241061,-195.81198644,0.00024503,2]
[321921145,1712626241070,-2422.34026006,0.00024507,2]
[321921146,1712626241079,-202.29189741,0.00024509,2]
[321921147,1712626241088,-340.07994146,0.00024512,2]
[321921148,1712626241098,-202.29189741,0.00024513,2]
[321921149,1712626241107,-195.81198644,0.00024518,2]
[321921150,1712626241116,-352.64975503,0.00024519,2]
[321921151,1712626241127,-352.64975503,0.0002452,2]
[321921152,1712626241139,-352.64975503,0.0002452,2]
[321921153,1712626241148,-202.29189741,0.00024521,2]
[321921154,1712626241157,-202.29189741,0.00024523,2]
[321921155,1712626241168,-3770.93318315,0.00024523,2]
[321921156,1712626241179,-202.29189741,0.00024523,2]
[321921157,1712626241190,-352.64975503,0.00024525,2]
[321921158,1712626241199,-585.0,0.00024527,2]
[321921159,1712626241209,-352.64975503,0.00024527,2]
[321921160,1712626241218,-340.07994146,0.00024528,2]
[321921161,1712626241228,-340.07994146,0.00024532,2]
[321921162,1712626241238,-340.07994146,0.00024542,2]
[321921163,1712626241249,-352.64975503,0.00024546,2]
[321921164,1712626241258,-195.81198644,0.00024548,2]
[321921165,1712626241269,-226.67046836,0.00024549,2]
[321921166,1712626241278,-195.81198644,0.00024552,2]
[321921167,1712626241288,-157.92490406,0.00024555,2]
[321921168,1712626241298,-207.6486,0.00024557,2]
[321921169,1712626241308,-2078.99719806,0.00024557,2]
[321921170,1712626241319,-180.22004204,0.00024557,2]
[321921171,1712626241329,-2210.7686592,0.00024557,2]
[321921172,1712626241339,-169.02653704,0.00024557,2]
[321921173,1712626241349,-154.92959651,0.00024557,2]
[321921174,1712626241360,-379.40386559,0.00024557,9]
[321921175,1712626241371,-437.19322817,0.00024557,2]
[321921176,1712626241382,-249.8333185,0.00024557,2]
[321921177,1712626241391,-340.07994146,0.00024563,2]
[321921178,1712626241401,-195.81198644,0.00024565,2]
[321921179,1712626241411,-340.07994146,0.00024568,2]
[321921180,1712626241420,-352.64975503,0.00024569,2]
[321921181,1712626241431,-417.04091,0.00024569,2]
[321921182,1712626241440,-202.29189741,0.00024571,2]
[321921183,1712626241451,-340.07994146,0.00024582,2]
[321921184,1712626241461,-352.64975503,0.00024585,2]
[321921185,1712626241470,-202.29189741,0.00024586,2]
[321921186,1712626241481,-202.29189741,0.00024586,2]
[321921187,1712626241491,-340.07994146,0.00024587,2]
[321921188,1712626241501,-195.81198644,0.00024588,2]
[321921189,1712626241511,-417.04091,0.00024589,2]
[321921190,1712626241521,-202.29189741,0.00024589,2]
[321921191,1712626241530,-2422.34026006,0.00024591,2]
[321921192,1712626241539,-195.81198644,0.00024592,2]
[321921193,1712626241549,-195.81198644,0.00024592,2]
[321921194,1712626241559,-195.81198644,0.00024594,2]
[321921195,1712626241568,-352.64975503,0.00024597,2]
[321921196,1712626241578,-481.0,0.000246,8]
[321921197,1712626241588,-1300.0,0.000246,8]
[321921198,1712626241598,-417.04091,0.00024609,2]
[321921199,1712626241608,-150.0,0.00024627,2]
[321921200,1712626241618,-417.04091,0.00024629,2]
[321921201,1712626241626,-4570.53799336,0.00024633,2]
[321921202,1712626241640,-167.64,0.0002464,2]
[321921203,1712626241649,-417.04091,0.00024649,2]
[321921204,1712626241658,-36793.55751359,0.0002465,2]
[321921205,1712626241675,-2678.55222613,0.0002465,2]
[321921206,1712626241687,-2333.88020984,0.0002465,2]
[321921207,1712626241714,-708.28605763,0.0002465,2]
[321921209,1712626243087,-475.92654033,0.0002315,2]
[321921210,1712626243124,-131.53052239,0.0002315,2]
[321921211,1712626243141,-150.0,0.00023603,2]
[321921212,1712626243151,-150.0,0.00023603,2]
[321921213,1712626243161,-1961.92914307,0.0002465,2]
[321921214,1712626243336,-150.0,0.00024215,2]
[321921215,1712626243345,-3394.4,0.0002465,2]
[321921216,1712626243503,-16736.47630287,0.0002465,2]